[Event "EWIBCC 2019"]
[Site "Monte-Carlo"]
[Date "2019.11.29"]
[Round "12.20"]
[White "Bensdorp-De Labaca, Marlies"]
[Black "Chigaeva, Anastasia"]
[Result "1/2-1/2"]
[ECO "D12"]
[WhiteElo "2228"]
[BlackElo "2156"]
[Annotator "NA"]
[PlyCount "126"]
[EventDate "2019.11.29"]
[EventType "swiss"]
[EventCountry "MNC"]
[SourceTitle "playchess.com"]
[Source "ChessBase"]
[SourceQuality "1"]
[TimeControl "180+2"]

1. d4 {[%emt 0:00:00]} d5 {[%emt 0:00:00]} 2. c4 {[%emt 0:00:00]} c6 {[%emt 0:00:00]} 3. Nf3 {[%emt 0:00:01]} Nf6 {[%emt 0:00:02]} 4. e3 {[%emt 0:00:01]} Bf5 {[%emt 0:00:01]} 5. Nbd2 {[%emt 0:00:05]} e6 {[%emt 0:00:04]} 6. Be2 {[%emt 0:00:01]} Be7 {[%emt 0:00:12]} 7. O-O {[%emt 0:00:02]} h6 {[%emt 0:00:05]} 8. b3 {[%emt 0:00:02]} O-O {[%emt 0:00:03]} 9. Bb2 {[%emt 0:00:01]} Nbd7 {[%emt 0:00:04]} 10. Ne5 {[%emt 0:00:07]} Qc7 {[%emt 0:00:19]} 11. h3 {[%emt 0:00:05]} Rac8 {[%emt 0:00:08]} 12. f4 {[%emt 0:00:06]} Ne4 {[%emt 0:00:07]} 13. Nxe4 {[%emt 0:00:15]} Bxe4 {[%emt 0:00:03]} 14. Bd3 {[%emt 0:00:03]} Nf6 {[%emt 0:00:05]} 15. Qe2 {[%emt 0:00:20]} Bxd3 {[%emt 0:00:05]} 16. Qxd3 {[%emt 0:00:04]} Ne4 {[%emt 0:00:02]} 17. Rac1 {[%emt 0:00:10]} Qa5 {[%emt 0:00:24]} 18. a4 {[%emt 0:00:01]} Qd2 {[%emt 0:00:04]} 19. Rc2 {[%emt 0:00:10]} Qxd3 {[%emt 0:00:03]} 20. Nxd3 {[%emt 0:00:01]} Rfd8 {[%emt 0:00:30]} 21. Rfc1 {[%emt 0:00:07]} Kf8 {[%emt 0:00:26]} 22. Nf2 {[%emt 0:00:04]} Ng3 {[%emt 0:00:08]} 23. Nd3 {[%emt 0:00:12]} Ne4 {[%emt 0:00:02]} 24. g4 {[%emt 0:00:06]} Ke8 {[%emt 0:00:16]} 25. Kg2 {[%emt 0:00:01]} Bf8 {[%emt 0:00:07]} 26. Nf2 {[%emt 0:00:06]} Nxf2 27. Kxf2 {[%emt 0:00:01]} Be7 {[%emt 0:00:06]} 28. Kf3 {[%emt 0:00:01]} Bf6 {[%emt 0:00:03]} 29. e4 {[%emt 0:00:05]} dxe4+ {[%emt 0:00:04]} 30. Kxe4 {[%emt 0:00:01]} Rd7 {[%emt 0:00:03]} 31. Rd1 {[%emt 0:00:05]} Rcd8 {[%emt 0:00:01]} 32. Rcd2 {[%emt 0:00:03]} c5 {[%emt 0:00:17]} 33. d5 {[%emt 0:00:32]} exd5+ {[%emt 0:00:02]} 34. cxd5 {[%emt 0:00:01]} Bxb2 {[%emt 0:00:01]} 35. Rxb2 {[%emt 0:00:01]} Re7+ {[%emt 0:00:01]} 36. Kf3 {[%emt 0:00:01]} Kd7 {[%emt 0:00:01]} 37. Rc2 {[%emt 0:00:10]} Kd6 {[%emt 0:00:02]} 38. Rd3 {[%emt 0:00:12]} Rde8 {[%emt 0:00:01]} 39. f5 {[%emt 0:00:04]} Re1 {[%emt 0:00:03]} 40. Kf4 {[%emt 0:00:06]} Rf1+ {[%emt 0:00:03]} 41. Kg3 {[%emt 0:00:04]} Rfe1 {[%emt 0:00:02]} 42. Kf2 {[%emt 0:00:02]} Rh1 {[%emt 0:00:02]} 43. Rdc3 {[%emt 0:00:11]} Ree1 {[%emt 0:00:02]} 44. Rxc5 {[%emt 0:00:07]} Ref1+ {[%emt 0:00:02]} 45. Ke2 {[%emt 0:00:03]} Re1+ {[%emt 0:00:02]} 46. Kd2 {[%emt 0:00:04]} Rd1+ {[%emt 0:00:01]} 47. Ke3 {[%emt 0:00:05]} Rxh3+ {[%emt 0:00:04]} 48. Ke2 {[%emt 0:00:04]} Rxd5 {[%emt 0:00:03]} 49. Rxd5+ {[%emt 0:00:04]} Kxd5 {[%emt 0:00:01]} 50. Rc7 {[%emt 0:00:02]} Rxb3 {[%emt 0:00:03]} 51. Rxf7 {[%emt 0:00:01]} Rg3 {[%emt 0:00:05]} 52. Rxg7 {[%emt 0:00:01]} Ke5 {[%emt 0:00:01]} 53. Rg6 {[%emt 0:00:01]} h5 {[%emt 0:00:04]} 54. gxh5 {[%emt 0:00:02]} Rh3 {[%emt 0:00:02]} 55. Rg7 {[%emt 0:00:03]} Kxf5 {[%emt 0:00:04]} 56. Rxb7 {[%emt 0:00:01]} a6 {[%emt 0:00:01]} 57. Rb6 {[%emt 0:00:03]} Rxh5 {[%emt 0:00:03]} 58. Rxa6 {[%emt 0:00:00]} Ke4 {[%emt 0:00:02]} 59. Kd2 {[%emt 0:00:03]} Kd4 {[%emt 0:00:01]} 60. Ra8 {[%emt 0:00:05]} Rh2+ {[%emt 0:00:02]} 61. Ke1 {[%emt 0:00:02]} Ra2 {[%emt 0:00:02]} 62. a5 {[%emt 0:00:02]} Kc5 {[%emt 0:00:01]} 63. a6 {[%emt 0:00:01]} Kb6 {[%emt 0:00:01]} 1/2-1/2

[Event "EWIBCC 2019"]
[Site "Monte-Carlo"]
[Date "2019.11.29"]
[Round "13.2"]
[White "Sebag, Marie"]
[Black "Zhukova, Natalia"]
[Result "0-1"]
[ECO "C78"]
[WhiteElo "2443"]
[BlackElo "2323"]
[Annotator "NA"]
[PlyCount "102"]
[EventDate "2019.11.29"]
[EventType "swiss"]
[EventCountry "MNC"]
[SourceTitle "playchess.com"]
[Source "ChessBase"]
[SourceQuality "1"]
[TimeControl "180+2"]

1. e4 {[%emt 0:00:00]} e5 {[%emt 0:00:00]} 2. Nf3 {[%emt 0:00:00]} Nc6 {[%emt 0:00:00]} 3. Bb5 {[%emt 0:00:01]} a6 {[%emt 0:00:00]} 4. Ba4 {[%emt 0:00:01]} Nf6 {[%emt 0:00:06]} 5. O-O {[%emt 0:00:02]} b5 {[%emt 0:00:01]} 6. Bb3 {[%emt 0:00:02]} Bc5 {[%emt 0:00:01]} 7. a4 {[%emt 0:00:15]} Rb8 {[%emt 0:00:03]} 8. c3 {[%emt 0:00:09]} d6 {[%emt 0:00:05]} 9. d4 {[%emt 0:00:00]} Bb6 {[%emt 0:00:01]} 10. a5 {[%emt 0:00:05]} Ba7 {[%emt 0:00:04]} 11. h3 {[%emt 0:00:04]} O-O {[%emt 0:00:02]} 12. Be3 {[%emt 0:00:03]} exd4 {[%emt 0:00:15]} 13. cxd4 {[%emt 0:00:03]} d5 {[%emt 0:00:46]} 14. e5 {[%emt 0:00:29]} Ne4 {[%emt 0:00:01]} 15. Nbd2 {[%emt 0:00:12]} Nxd2 {[%emt 0:00:12]} 16. Qxd2 {[%emt 0:00:01]} Ne7 {[%emt 0:00:01]} 17. Rac1 {[%emt 0:00:20]} Bf5 {[%emt 0:00:11]} 18. Bg5 {[%emt 0:00:09]} Be4 {[%emt 0:00:15]} 19. Nh2 {[%emt 0:00:24]} f6 {[%emt 0:00:23]} 20. exf6 {[%emt 0:00:05]} gxf6 {[%emt 0:00:00]} 21. Bf4 {[%emt 0:00:06]} Rc8 {[%emt 0:00:01]} 22. f3 {[%emt 0:00:14]} Bg6 {[%emt 0:00:01]} 23. Be3 {[%emt 0:00:09]} Nf5 {[%emt 0:00:09]} 24. Bf2 {[%emt 0:00:01]} c6 {[%emt 0:00:05]} 25. Ng4 {[%emt 0:00:02]} Bb8 {[%emt 0:00:06]} 26. Nh6+ {[%emt 0:00:11]} Nxh6 {[%emt 0:00:03]} 27. Qxh6 {[%emt 0:00:01]} Qd6 {[%emt 0:00:03]} 28. g3 {[%emt 0:00:02]} Qb4 {[%emt 0:00:02]} 29. Rc3 {[%emt 0:00:02]} Ba7 {[%emt 0:00:41]} 30. Qf4 {[%emt 0:00:11]} Kg7 {[%emt 0:00:11]} 31. Rfc1 {[%emt 0:00:03]} Be8 {[%emt 0:00:06]} 32. h4 {[%emt 0:00:16]} Rd8 {[%emt 0:00:03]} 33. Qc7+ {[%emt 0:00:07]} Rd7 {[%emt 0:00:01]} 34. Qxc6 {[%emt 0:00:01]} Qxa5 {[%emt 0:00:04]} 35. Qe6 {[%emt 0:00:05]} Qd8 {[%emt 0:00:03]} 36. Be3 {[%emt 0:00:03]} Re7 {[%emt 0:00:01]} 37. Qg4+ {[%emt 0:00:01]} Kh8 {[%emt 0:00:02]} 38. Rc8 {[%emt 0:00:00]} Qd6 {[%emt 0:00:02]} 39. Bf4 {[%emt 0:00:01]} Qb4 {[%emt 0:00:01]} 40. Bc2 {[%emt 0:00:03]} Qxd4+ {[%emt 0:00:01]} 41. Kh2 {[%emt 0:00:04]} Rg8 {[%emt 0:00:02]} 42. Qf5 {[%emt 0:00:03]} Qf2+ {[%emt 0:00:02]} 43. Kh1 {[%emt 0:00:01]} Qxf3+ {[%emt 0:00:09]} 44. Kh2 Qf2+ {[%emt 0:00:00]} 45. Kh1 {[%emt 0:00:01]} Qf3+ {[%emt 0:00:00]} 46. Kh2 {[%emt 0:00:00]} Qf2+ {[%emt 0:00:00]} 47. Kh1 {[%emt 0:00:00]} Qf3+ {[%emt 0:00:04]} 48. Kh2 {[%emt 0:00:01]} Qf2+ {[%emt 0:00:06]} 49. Kh1 Qf3+ {[%emt 0:00:00]} 50. Kh2 {[%emt 0:00:01]} Re2+ {[%emt 0:00:00]} 51. Kh3 {[%emt 0:00:07]} Qg2# {[%emt 0:00:01]} 0-1

[Event "EWIBCC 2019"]
[Site "Monte-Carlo"]
[Date "2019.11.29"]
[Round "13.4"]
[White "Muzychuk, Anna"]
[Black "Bulmaga, Irina"]
[Result "1/2-1/2"]
[ECO "C49"]
[WhiteElo "2543"]
[BlackElo "2435"]
[Annotator "ChessBase"]
[PlyCount "73"]
[EventDate "2019.11.29"]
[EventType "swiss"]
[EventCountry "MNC"]
[SourceTitle "playchess.com"]
[Source "ChessBase"]
[SourceQuality "1"]
[TimeControl "180+2"]

1. e4 {[%emt 0:00:00]} e5 {[%emt 0:00:00]} 2. Nf3 {[%emt 0:00:00]} Nc6 {[%emt 0:00:01]} 3. Nc3 {[%emt 0:00:00]} Nf6 {[%emt 0:00:01]} 4. Bb5 {[%emt 0:00:00]} Bb4 {[%emt 0:00:02]} 5. O-O {[%emt 0:00:02]} O-O {[%emt 0:00:03]} 6. d3 {[%emt 0:00:01]} Bxc3 {[%emt 0:00:02]} 7. bxc3 {[%emt 0:00:01]} d6 {[%emt 0:00:01]} 8. Bg5 {[%emt 0:00:01]} Bd7 {[%emt 0:00:07]} 9. Re1 {[%emt 0:00:09]} h6 {[%emt 0:00:03]} 10. Bh4 {[%emt 0:00:01]} Qe7 {[%emt 0:00:08]} 11. d4 {[%emt 0:00:07]} a6 {[%emt 0:00:02]} 12. Bd3 {[%emt 0:00:03]} Nd8 {[%emt 0:00:18]} 13. d5 {[%emt 0:00:08]} b6 {[%emt 0:00:05]} 14. h3 {[%emt 0:00:06]} Nb7 {[%emt 0:00:09]} 15. Nd2 {[%emt 0:00:04]} Nc5 {[%emt 0:00:11]} 16. Nf1 {[%emt 0:00:02]} g5 {[%emt 0:00:05]} 17. Bg3 {[%emt 0:00:01]} Ne8 {[%emt 0:00:12]} 18. Ne3 {[%emt 0:00:22]} Ng7 {[%emt 0:00:03]} 19. f3 {[%emt 0:00:16]} f5 {[%emt 0:00:11]} 20. exf5 {[%emt 0:00:02]} Nxf5 {[%emt 0:00:02]} 21. Bf2 {[%emt 0:00:05]} Nxe3 {[%emt 0:00:15]} 22. Bxe3 {[%emt 0:00:03]} Qf6 {[%emt 0:00:12]} 23. Bxc5 {[%emt 0:00:11]} bxc5 {[%emt 0:00:02]} 24. Qe2 {[%emt 0:00:03]} a5 {[%emt 0:00:05]} 25. Rab1 {[%emt 0:00:06]} Rab8 {[%emt 0:00:02]} 26. Qe4 {[%emt 0:00:10]} Qg7 {[%emt 0:00:08]} 27. Kh2 {[%emt 0:00:24]} Rb6 {[%emt 0:00:39]} 28. Rxb6 {[%emt 0:00:04]} cxb6 {[%emt 0:00:01]} 29. Rb1 {[%emt 0:00:02]} Rb8 {[%emt 0:00:28]} 30. Bb5 {[%emt 0:00:03]} Bxb5 {[%emt 0:00:09]} 31. Rxb5 {[%emt 0:00:01]} Qf7 {[%emt 0:00:04]} 32. g3 {[%emt 0:00:33]} Kg7 {[%emt 0:00:01]} 33. a4 {[%emt 0:00:30]} Qg6 {[%emt 0:00:02]} 34. Kg2 {[%emt 0:00:02]} Qxe4 {[%emt 0:00:07]} 35. fxe4 {[%emt 0:00:01]} c4 {[%emt 0:00:02]} 36. Kf3 {[%emt 0:00:11]} h5 {[%emt 0:00:01]} 37. Ke3 {[%emt 0:00:05]} 1/2-1/2

[Event "EWIBCC 2019"]
[Site "Monte-Carlo"]
[Date "2019.11.29"]
[Round "13.5"]
[White "Mkrtchian, Lilit"]
[Black "Benmesbah, Natacha"]
[Result "1-0"]
[ECO "A36"]
[WhiteElo "2402"]
[BlackElo "2265"]
[Annotator "NA"]
[PlyCount "53"]
[EventDate "2019.11.29"]
[EventType "swiss"]
[EventCountry "MNC"]
[SourceTitle "playchess.com"]
[Source "ChessBase"]
[SourceQuality "1"]
[TimeControl "180+2"]

1. c4 {[%emt 0:00:00]} Nf6 {[%emt 0:00:00]} 2. Nc3 {[%emt 0:00:01]} g6 {[%emt 0:00:04]} 3. g3 {[%emt 0:00:02]} Bg7 {[%emt 0:00:00]} 4. Bg2 {[%emt 0:00:01]} O-O {[%emt 0:00:07]} 5. e4 {[%emt 0:00:02]} d6 {[%emt 0:00:01]} 6. Nge2 {[%emt 0:00:01]} c5 {[%emt 0:00:06]} 7. O-O {[%emt 0:00:04]} Nc6 {[%emt 0:00:01]} 8. d3 {[%emt 0:00:03]} a6 {[%emt 0:00:08]} 9. h3 {[%emt 0:00:21]} Ne8 {[%emt 0:00:05]} 10. Be3 {[%emt 0:00:02]} e5 {[%emt 0:00:07]} 11. f4 {[%emt 0:00:08]} Nc7 {[%emt 0:00:11]} 12. f5 {[%emt 0:00:43]} b5 {[%emt 0:00:06]} 13. Qd2 {[%emt 0:00:05]} bxc4 {[%emt 0:00:09]} 14. dxc4 {[%emt 0:00:02]} Nd4 {[%emt 0:00:03]} 15. Bg5 {[%emt 0:00:08]} f6 {[%emt 0:00:02]} 16. Be3 {[%emt 0:00:08]} Rb8 {[%emt 0:00:04]} 17. g4 {[%emt 0:00:04]} Bb7 {[%emt 0:00:32]} 18. Ng3 {[%emt 0:00:06]} Qe8 {[%emt 0:00:07]} 19. Rf2 {[%emt 0:00:10]} Bc6 {[%emt 0:00:26]} 20. Raf1 {[%emt 0:00:02]} Rb4 {[%emt 0:00:05]} 21. b3 {[%emt 0:00:04]} a5 {[%emt 0:00:01]} 22. Nd5 {[%emt 0:00:15]} Bxd5 {[%emt 0:00:07]} 23. exd5 {[%emt 0:00:02]} a4 {[%emt 0:00:03]} 24. Bxd4 {[%emt 0:00:33]} cxd4 {[%emt 0:00:01]} 25. Qxb4 {[%emt 0:00:05]} axb3 {[%emt 0:00:04]} 26. axb3 {[%emt 0:00:01]} e4 {[%emt 0:00:04]} 27. Nxe4 {[%emt 0:00:03]} 1-0

[Event "EWIBCC 2019"]
[Site "Monte-Carlo"]
[Date "2019.11.29"]
[Round "13.6"]
[White "Savina, Anastasia"]
[Black "Michna, Marta"]
[Result "0-1"]
[ECO "E94"]
[WhiteElo "2354"]
[BlackElo "2366"]
[Annotator "NA"]
[PlyCount "142"]
[EventDate "2019.11.29"]
[EventType "swiss"]
[EventCountry "MNC"]
[SourceTitle "playchess.com"]
[Source "ChessBase"]
[SourceQuality "1"]
[TimeControl "180+2"]

1. d4 {[%emt 0:00:00]} Nf6 {[%emt 0:00:00]} 2. c4 {[%emt 0:00:01]} d6 {[%emt 0:00:00]} 3. Nf3 {[%emt 0:00:02]} Nbd7 {[%emt 0:00:00]} 4. Nc3 {[%emt 0:00:02]} e5 {[%emt 0:00:01]} 5. e4 {[%emt 0:00:02]} g6 {[%emt 0:00:01]} 6. Be2 {[%emt 0:00:12]} Bg7 {[%emt 0:00:01]} 7. O-O {[%emt 0:00:03]} O-O {[%emt 0:00:02]} 8. Be3 {[%emt 0:00:07]} Re8 {[%emt 0:00:04]} 9. d5 {[%emt 0:00:01]} h6 {[%emt 0:00:25]} 10. Nd2 {[%emt 0:00:04]} a5 {[%emt 0:00:22]} 11. a3 {[%emt 0:00:11]} Nh7 {[%emt 0:00:22]} 12. b4 {[%emt 0:00:26]} b6 {[%emt 0:00:01]} 13. Nb3 {[%emt 0:00:18]} a4 {[%emt 0:00:04]} 14. Nc1 {[%emt 0:00:12]} f5 {[%emt 0:00:03]} 15. f3 {[%emt 0:00:02]} Ndf6 {[%emt 0:00:05]} 16. c5 {[%emt 0:00:18]} bxc5 {[%emt 0:00:17]} 17. bxc5 {[%emt 0:00:02]} Bd7 {[%emt 0:00:01]} 18. Nd3 {[%emt 0:00:06]} Ng5 {[%emt 0:00:10]} 19. Nf2 {[%emt 0:00:46]} f4 {[%emt 0:00:07]} 20. Bd2 {[%emt 0:00:01]} dxc5 {[%emt 0:00:02]} 21. Qc2 {[%emt 0:00:07]} Bf8 {[%emt 0:00:05]} 22. Rab1 {[%emt 0:00:04]} Bd6 {[%emt 0:00:02]} 23. Bb5 {[%emt 0:00:06]} h5 {[%emt 0:00:05]} 24. Nd3 {[%emt 0:00:13]} h4 {[%emt 0:00:17]} 25. Be1 {[%emt 0:00:03]} h3 {[%emt 0:00:04]} 26. Bh4 {[%emt 0:00:04]} Nfh7 {[%emt 0:00:08]} 27. g3 {[%emt 0:00:02]} Bxb5 {[%emt 0:00:17]} 28. Nxb5 {[%emt 0:00:01]} fxg3 {[%emt 0:00:05]} 29. hxg3 {[%emt 0:00:01]} Rf8 {[%emt 0:00:02]} 30. Qe2 {[%emt 0:00:14]} Qe8 {[%emt 0:00:02]} 31. Kh2 {[%emt 0:00:02]} Nf7 {[%emt 0:00:14]} 32. Nc3 {[%emt 0:00:05]} g5 {[%emt 0:00:01]} 33. Rg1 {[%emt 0:00:03]} gxh4 {[%emt 0:00:02]} 34. gxh4+ {[%emt 0:00:01]} Kh8 {[%emt 0:00:00]} 35. Nf2 {[%emt 0:00:03]} Nh6 {[%emt 0:00:08]} 36. Qe3 {[%emt 0:00:02]} Rf6 {[%emt 0:00:06]} 37. Ng4 {[%emt 0:00:01]} Nxg4+ {[%emt 0:00:02]} 38. Rxg4 {[%emt 0:00:01]} Qf8 {[%emt 0:00:08]} 39. Rg3 {[%emt 0:00:02]} Qh6 {[%emt 0:00:22]} 40. Qxh6 Rxh6 {[%emt 0:00:00]} 41. Kxh3 {[%emt 0:00:06]} Nf6 {[%emt 0:00:00]} 42. Rb7 {[%emt 0:00:03]} Nh5 {[%emt 0:00:00]} 43. Rg5 {[%emt 0:00:03]} Nf4+ {[%emt 0:00:00]} 44. Kg3 {[%emt 0:00:01]} Rf6 {[%emt 0:00:00]} 45. Nb5 {[%emt 0:00:01]} Ne2+ {[%emt 0:00:04]} 46. Kf2 {[%emt 0:00:02]} Nd4 {[%emt 0:00:00]} 47. Nxd4 {[%emt 0:00:02]} cxd4 {[%emt 0:00:02]} 48. Ke2 {[%emt 0:00:02]} Raf8 {[%emt 0:00:01]} 49. Rg3 {[%emt 0:00:02]} Rh6 {[%emt 0:00:01]} 50. Rg4 {[%emt 0:00:02]} Ra8 {[%emt 0:00:03]} 51. Kd3 {[%emt 0:00:04]} Kh7 {[%emt 0:00:01]} 52. Rb1 {[%emt 0:00:02]} Rg6 {[%emt 0:00:00]} 53. h5 {[%emt 0:00:02]} Rxg4 {[%emt 0:00:01]} 54. fxg4 {[%emt 0:00:00]} Rg8 {[%emt 0:00:17]} 55. Rg1 {[%emt 0:00:01]} Kh6 {[%emt 0:00:00]} 56. Kc4 {[%emt 0:00:03]} Rf8 {[%emt 0:00:00]} 57. g5+ {[%emt 0:00:02]} Kxh5 {[%emt 0:00:06]} 58. g6 Rg8 {[%emt 0:00:00]} 59. g7 {[%emt 0:00:02]} Kh6 {[%emt 0:00:00]} 60. Kb5 {[%emt 0:00:01]} Rxg7 {[%emt 0:00:00]} 61. Rh1+ {[%emt 0:00:01]} Kg6 {[%emt 0:00:00]} 62. Kxa4 {[%emt 0:00:02]} Kf7 {[%emt 0:00:00]} 63. Kb3 {[%emt 0:00:02]} Rg3+ {[%emt 0:00:00]} 64. Kc4 {[%emt 0:00:01]} Rxa3 {[%emt 0:00:00]} 65. Rf1+ {[%emt 0:00:04]} Kg6 {[%emt 0:00:00]} 66. Rg1+ {[%emt 0:00:02]} Kh5 {[%emt 0:00:00]} 67. Kb5 {[%emt 0:00:02]} Rc3 {[%emt 0:00:00]} 68. Rg2 {[%emt 0:00:06]} d3 {[%emt 0:00:00]} 69. Rd2 {[%emt 0:00:02]} Kg4 {[%emt 0:00:00]} 70. Rd1 {[%emt 0:00:03]} Kf3 {[%emt 0:00:00]} 71. Ka4 {[%emt 0:00:02]} Kxe4 {[%emt 0:00:00]} 0-1

[Event "EWIBCC 2019"]
[Site "Monte-Carlo"]
[Date "2019.11.29"]
[Round "13.7"]
[White "Dzagnidze, Nana"]
[Black "Daulyte-Cornette, Deimante"]
[Result "1-0"]
[ECO "A10"]
[WhiteElo "2502"]
[BlackElo "2405"]
[Annotator "ChessBase"]
[PlyCount "75"]
[EventDate "2019.11.29"]
[EventType "swiss"]
[EventCountry "MNC"]
[SourceTitle "playchess.com"]
[Source "ChessBase"]
[SourceQuality "1"]
[TimeControl "180+2"]

1. c4 {[%emt 0:00:00]} b6 {[%emt 0:00:00]} 2. Nf3 {[%emt 0:00:01]} Bb7 {[%emt 0:00:01]} 3. b3 {[%emt 0:00:10]} Nf6 {[%emt 0:00:08]} 4. Bb2 {[%emt 0:00:01]} e6 {[%emt 0:00:09]} 5. g3 {[%emt 0:00:05]} d5 {[%emt 0:00:14]} 6. Bg2 {[%emt 0:00:02]} Bd6 {[%emt 0:00:09]} 7. O-O {[%emt 0:00:07]} O-O {[%emt 0:00:03]} 8. Nc3 {[%emt 0:00:11]} dxc4 {[%emt 0:00:25]} 9. bxc4 {[%emt 0:00:01]} c5 {[%emt 0:00:03]} 10. d3 {[%emt 0:00:12]} Nc6 {[%emt 0:00:11]} 11. e3 {[%emt 0:00:08]} Be7 {[%emt 0:00:10]} 12. Qe2 {[%emt 0:00:02]} Qd7 {[%emt 0:00:16]} 13. Rfd1 {[%emt 0:00:03]} Rfd8 {[%emt 0:00:02]} 14. d4 {[%emt 0:00:12]} Qe8 {[%emt 0:00:17]} 15. d5 {[%emt 0:00:06]} exd5 {[%emt 0:00:04]} 16. cxd5 {[%emt 0:00:01]} Nb4 {[%emt 0:00:15]} 17. e4 {[%emt 0:00:02]} Ba6 {[%emt 0:00:03]} 18. Qd2 {[%emt 0:00:08]} Nd3 {[%emt 0:00:20]} 19. Ne1 {[%emt 0:00:44]} Nxb2 {[%emt 0:00:08]} 20. Qxb2 {[%emt 0:00:01]} c4 {[%emt 0:00:25]} 21. e5 {[%emt 0:00:08]} Ng4 {[%emt 0:00:01]} 22. Qe2 {[%emt 0:00:01]} Nh6 {[%emt 0:00:09]} 23. d6 {[%emt 0:00:09]} Bf8 {[%emt 0:00:01]} 24. Bxa8 {[%emt 0:00:15]} Rxa8 {[%emt 0:00:00]} 25. Nd5 {[%emt 0:00:03]} Bb7 {[%emt 0:00:05]} 26. Qxc4 {[%emt 0:00:13]} Rc8 {[%emt 0:00:01]} 27. Nc7 {[%emt 0:00:12]} Qxe5 {[%emt 0:00:03]} 28. Qd4 {[%emt 0:00:19]} Qh5 {[%emt 0:00:05]} 29. Rac1 {[%emt 0:00:08]} Rd8 {[%emt 0:00:02]} 30. Qf4 {[%emt 0:00:03]} Qh3 {[%emt 0:00:04]} 31. Qh4 {[%emt 0:00:03]} Qf5 {[%emt 0:00:02]} 32. Qxd8 {[%emt 0:00:03]} Ng4 {[%emt 0:00:04]} 33. f4 {[%emt 0:00:07]} Qh5 {[%emt 0:00:01]} 34. Qh4 {[%emt 0:00:02]} Qf5 {[%emt 0:00:07]} 35. d7 {[%emt 0:00:07]} Qe4 {[%emt 0:00:02]} 36. Qxg4 {[%emt 0:00:02]} Qh1+ {[%emt 0:00:02]} 37. Kf2 Qxh2+ {[%emt 0:00:02]} 38. Ke3 1-0

[Event "EWIBCC 2019"]
[Site "Monte-Carlo"]
[Date "2019.11.29"]
[Round "13.8"]
[White "Paehtz, Elisabeth"]
[Black "Berend, Elvira"]
[Result "1-0"]
[ECO "A48"]
[WhiteElo "2484"]
[BlackElo "2349"]
[Annotator "ChessBase"]
[PlyCount "49"]
[EventDate "2019.11.29"]
[EventType "swiss"]
[EventCountry "MNC"]
[SourceTitle "playchess.com"]
[Source "ChessBase"]
[SourceQuality "1"]
[TimeControl "180+2"]

1. d4 {[%emt 0:00:00]} Nf6 {[%emt 0:00:00]} 2. Nf3 {[%emt 0:00:00]} g6 {[%emt 0:00:01]} 3. Bg5 {[%emt 0:00:01]} Bg7 {[%emt 0:00:04]} 4. Nbd2 {[%emt 0:00:02]} O-O {[%emt 0:00:05]} 5. c3 {[%emt 0:00:01]} d6 {[%emt 0:00:01]} 6. e3 {[%emt 0:00:02]} b6 {[%emt 0:00:08]} 7. Bc4 {[%emt 0:00:01]} Bb7 {[%emt 0:00:01]} 8. a4 {[%emt 0:00:02]} a6 {[%emt 0:00:05]} 9. O-O {[%emt 0:00:03]} Nbd7 {[%emt 0:00:04]} 10. Re1 {[%emt 0:00:01]} e5 {[%emt 0:00:07]} 11. dxe5 {[%emt 0:00:02]} dxe5 {[%emt 0:00:03]} 12. e4 {[%emt 0:00:02]} h6 {[%emt 0:00:12]} 13. Bh4 {[%emt 0:00:02]} Qe7 {[%emt 0:00:07]} 14. Bf1 {[%emt 0:00:13]} Nc5 {[%emt 0:00:06]} 15. b4 {[%emt 0:00:16]} Ne6 {[%emt 0:00:20]} 16. Nxe5 {[%emt 0:00:09]} Rad8 {[%emt 0:00:06]} 17. Qc2 {[%emt 0:00:04]} g5 {[%emt 0:00:19]} 18. Bg3 {[%emt 0:00:01]} Nh5 {[%emt 0:00:02]} 19. Nec4 {[%emt 0:00:07]} Nxg3 20. hxg3 {[%emt 0:00:01]} Qf6 {[%emt 0:00:14]} 21. e5 {[%emt 0:00:08]} Qe7 {[%emt 0:00:04]} 22. Ne4 {[%emt 0:00:09]} Ba8 {[%emt 0:00:38]} 23. Ne3 {[%emt 0:00:05]} Qd7 {[%emt 0:00:23]} 24. Ng4 {[%emt 0:00:07]} Kh8 {[%emt 0:00:04]} 25. Nef6 {[%emt 0:00:02]} 1-0

[Event "EWIBCC 2019"]
[Site "Monte-Carlo"]
[Date "2019.11.29"]
[Round "13.9"]
[White "Doluhanova, Evgeniya"]
[Black "Bodnaruk, Anastasia"]
[Result "0-1"]
[ECO "A05"]
[WhiteElo "2276"]
[BlackElo "2412"]
[Annotator "NA"]
[PlyCount "62"]
[EventDate "2019.11.29"]
[EventType "swiss"]
[EventCountry "MNC"]
[SourceTitle "playchess.com"]
[Source "ChessBase"]
[SourceQuality "1"]
[TimeControl "180+2"]

1. Nf3 {[%emt 0:00:00]} Nf6 {[%emt 0:00:00]} 2. b3 {[%emt 0:00:00]} g6 {[%emt 0:00:00]} 3. Bb2 {[%emt 0:00:01]} Bg7 {[%emt 0:00:00]} 4. g3 {[%emt 0:00:05]} O-O {[%emt 0:00:02]} 5. Bg2 {[%emt 0:00:01]} c5 {[%emt 0:00:09]} 6. O-O {[%emt 0:00:02]} d6 {[%emt 0:00:01]} 7. c4 {[%emt 0:00:15]} e5 {[%emt 0:00:03]} 8. d3 {[%emt 0:00:02]} Nc6 {[%emt 0:00:01]} 9. Nbd2 {[%emt 0:00:02]} h6 {[%emt 0:00:05]} 10. Ne4 {[%emt 0:00:06]} Be6 {[%emt 0:00:18]} 11. Ne1 {[%emt 0:00:07]} Ne8 {[%emt 0:00:26]} 12. Nc2 {[%emt 0:00:06]} f5 {[%emt 0:00:06]} 13. Nc3 {[%emt 0:00:02]} f4 {[%emt 0:00:07]} 14. Nd5 {[%emt 0:00:08]} Qd7 {[%emt 0:00:24]} 15. Qd2 {[%emt 0:00:28]} g5 {[%emt 0:00:08]} 16. b4 {[%emt 0:00:18]} Bh3 {[%emt 0:00:07]} 17. b5 {[%emt 0:00:25]} Nd4 {[%emt 0:00:06]} 18. Nxd4 {[%emt 0:00:09]} cxd4 {[%emt 0:00:02]} 19. Ba3 {[%emt 0:00:05]} Nf6 {[%emt 0:00:35]} 20. Nxf6+ {[%emt 0:00:07]} Rxf6 {[%emt 0:00:04]} 21. Bd5+ {[%emt 0:00:26]} Kh8 {[%emt 0:00:06]} 22. Rfc1 {[%emt 0:00:03]} Raf8 {[%emt 0:00:14]} 23. Bf3 {[%emt 0:00:21]} g4 {[%emt 0:00:09]} 24. Bg2 {[%emt 0:00:10]} fxg3 {[%emt 0:00:15]} 25. fxg3 {[%emt 0:00:04]} Bxg2 {[%emt 0:00:03]} 26. Kxg2 {[%emt 0:00:02]} Rf2+ {[%emt 0:00:02]} 27. Kg1 {[%emt 0:00:01]} Qf5 {[%emt 0:00:04]} 28. Bxd6 {[%emt 0:00:14]} Rf6 {[%emt 0:00:12]} 29. Bc7 {[%emt 0:00:04]} Qh5 {[%emt 0:00:03]} 30. h4 {[%emt 0:00:01]} gxh3 {[%emt 0:00:01]} 31. Bxe5 {[%emt 0:00:04]} Qxe5 {[%emt 0:00:00]} 0-1